fUSD/lending_fUSD_20260525
["ID","MTS","AMOUNT","RATE_DAILY","PERIOD"]
[422927447,1779643847000,-1521.53,0.00014999,2]
[422927476,1779643847000,-27527.22495909,0.00015,2]
[422927444,1779643847000,-1185.05,0.00014999,2]
[422927456,1779643847000,-5524.48,0.00014999,2]
[422927466,1779643847000,-300.0,0.00014999,2]
[422927455,1779643847000,-1521.57964888,0.00014999,2]
[422927464,1779643847000,-5524.48,0.00014999,2]
[422927459,1779643847000,-5524.48,0.00014999,2]
[422927454,1779643847000,-1521.53,0.00014999,2]
[422927458,1779643847000,-5524.48,0.00014999,2]
[422927462,1779643847000,-5524.48,0.00014999,2]
[422927463,1779643847000,-5524.48,0.00014999,2]
[422927465,1779643847000,-5524.58360477,0.00014999,2]
[422927468,1779643847000,-9571181.87498064,0.00015,2]
[422927461,1779643847000,-5524.48,0.00014999,2]
[422927457,1779643847000,-5524.48,0.00014999,2]
[422927460,1779643847000,-5524.48,0.00014999,2]
[422927534,1779643848000,-2987.84547412,0.00017329,2]
[422927528,1779643848000,-154.19,0.00016876,2]
[422927531,1779643848000,-161.0,0.0001726,2]
[422927540,1779643848000,-1543.0,0.00017362,2]
[422927529,1779643848000,-9999.99,0.00016922,2]
[422927539,1779643848000,-1543.0,0.00017362,2]
[422927520,1779643848000,-453.90085798,0.000162,2]
[422927524,1779643848000,-255.129686,0.00016438,2]
[422927523,1779643848000,-161.0,0.00016438,2]
[422927538,1779643848000,-1543.0,0.00017362,2]
[422927516,1779643848000,-299.99,0.00016116,4]
[422927541,1779643848000,-1543.0,0.00017362,2]
[422927532,1779643848000,-2987.84547412,0.00017279,2]
[422927543,1779643848000,-151.0,0.00017362,2]
[422927537,1779643848000,-1543.0,0.00017362,2]
[422927530,1779643848000,-6224.82,0.00016922,2]
[422927535,1779643848000,-2987.84547412,0.00017333,2]
[422927533,1779643848000,-2987.84547412,0.00017285,2]
[422927542,1779643848000,-1543.0,0.00017362,2]
[422927546,1779643848000,-151.0,0.00017362,2]
[422927550,1779643848000,-151.0,0.00017362,2]
[422927549,1779643848000,-1543.0,0.00017362,2]
[422927553,1779643848000,-1543.0,0.00017362,2]
[422927545,1779643848000,-1543.0,0.00017362,2]
[422927547,1779643848000,-151.0,0.00017362,2]
[422927521,1779643848000,-2129.0,0.00016428,2]
[422927536,1779643848000,-2987.84547412,0.0001736,2]
[422927522,1779643848000,-335.1,0.00016438,2]
[422927503,1779643848000,-300.0,0.00015558,2]
[422927518,1779643848000,-9091.92932742,0.00016147,2]
[422927548,1779643848000,-1543.0,0.00017362,2]
[422927501,1779643848000,-2588.0,0.00015152,2]
[422927500,1779643848000,-1492.68,0.00015133,2]
[422927496,1779643848000,-500.0,0.00015113,2]
[422927494,1779643848000,-150.0,0.00015097,2]
[422927498,1779643848000,-810.79,0.00015133,2]
[422927497,1779643848000,-2000.0,0.00015113,2]
[422927499,1779643848000,-536.81,0.00015133,2]
[422927495,1779643848000,-190.82542213,0.00015097,2]
[422927513,1779643848000,-453.90085798,0.000161,2]
[422927504,1779643848000,-212.429769,0.00015589,2]
[422927515,1779643848000,-9999.99,0.00016116,2]
[422927517,1779643848000,-473.39,0.00016116,2]
[422927514,1779643848000,-154.19,0.00016109,2]
[422927509,1779643848000,-215.34753388,0.00016,3]
[422927512,1779643848000,-1601.51,0.00016008,2]
[422927505,1779643848000,-168.14,0.00015627,2]
[422927506,1779643848000,-5000.0,0.000158,15]
[422927511,1779643848000,-453.90085798,0.00016,2]
[422927508,1779643848000,-162.165835,0.00015909,2]
[422927510,1779643848000,-300.0,0.00016,2]
[422927507,1779643848000,-216.145514,0.00015906,2]
[422927526,1779643848000,-273.802414,0.00016438,2]
[422927527,1779643848000,-880.94,0.000168,2]
[422927519,1779643848000,-2353.8492,0.00016191,2]
[422927525,1779643848000,-230.15,0.00016438,2]
[422927502,1779643848000,-154.19,0.00015341,2]
[422927551,1779643848000,-1543.0,0.00017362,2]
[422927610,1779643848000,-152.0,0.00017362,2]
[422927544,1779643848000,-1543.0,0.00017362,2]
[422927591,1779643848000,-1543.0,0.00017362,2]
[422927586,1779643848000,-1543.0,0.00017362,2]
[422927587,1779643848000,-1543.0,0.00017362,2]
[422927593,1779643848000,-1543.0,0.00017362,2]
[422927590,1779643848000,-1543.0,0.00017362,2]
[422927585,1779643848000,-1543.0,0.00017362,2]
[422927588,1779643848000,-1543.0,0.00017362,2]
[422927596,1779643848000,-1543.0,0.00017362,2]
[422927592,1779643848000,-1543.0,0.00017362,2]
[422927594,1779643848000,-1543.0,0.00017362,2]
[422927595,1779643848000,-1543.0,0.00017362,2]
[422927604,1779643848000,-151.0,0.00017362,2]
[422927583,1779643848000,-1543.0,0.00017362,2]
[422927608,1779643848000,-152.0,0.00017362,2]
[422927600,1779643848000,-151.0,0.00017362,2]
[422927606,1779643848000,-170.21433815,0.00017362,2]
[422927599,1779643848000,-451.82918514,0.00017362,2]
[422927603,1779643848000,-151.0,0.00017362,2]
[422927597,1779643848000,-1543.0,0.00017362,2]
[422927598,1779643848000,-1543.0,0.00017362,2]
[422927601,1779643848000,-151.0,0.00017362,2]
[422927607,1779643848000,-152.0,0.00017362,2]
[422927605,1779643848000,-151.0,0.00017362,2]
[422927609,1779643848000,-152.0,0.00017362,2]
[422927611,1779643848000,-152.0,0.00017362,2]
[422927554,1779643848000,-151.0,0.00017362,2]
[422927602,1779643848000,-151.0,0.00017362,2]
[422927584,1779643848000,-1543.0,0.00017362,2]
[422927589,1779643848000,-1543.0,0.00017362,2]
[422927578,1779643848000,-1543.0,0.00017362,2]
[422927582,1779643848000,-1543.0,0.00017362,2]
[422927567,1779643848000,-1543.0,0.00017362,2]
[422927560,1779643848000,-151.0,0.00017362,2]
[422927555,1779643848000,-1543.0,0.00017362,2]
[422927566,1779643848000,-151.0,0.00017362,2]
[422927556,1779643848000,-1543.0,0.00017362,2]
[422927558,1779643848000,-1543.0,0.00017362,2]
[422927557,1779643848000,-151.0,0.00017362,2]
[422927561,1779643848000,-1543.0,0.00017362,2]
[422927563,1779643848000,-151.0,0.00017362,2]
[422927562,1779643848000,-1543.0,0.00017362,2]
[422927559,1779643848000,-151.0,0.00017362,2]
[422927564,1779643848000,-151.0,0.00017362,2]
[422927565,1779643848000,-1543.0,0.00017362,2]
[422927552,1779643848000,-151.0,0.00017362,2]
[422927574,1779643848000,-151.0,0.00017362,2]
[422927576,1779643848000,-155.55224971,0.00017362,2]
[422927580,1779643848000,-1543.0,0.00017362,2]
[422927581,1779643848000,-1543.0,0.00017362,2]
[422927579,1779643848000,-1543.0,0.00017362,2]
[422927568,1779643848000,-151.0,0.00017362,2]
[422927571,1779643848000,-1543.0,0.00017362,2]
[422927572,1779643848000,-151.0,0.00017362,2]
[422927570,1779643848000,-151.0,0.00017362,2]
[422927569,1779643848000,-1543.0,0.00017362,2]
[422927575,1779643848000,-1543.0,0.00017362,2]
[422927573,1779643848000,-1543.0,0.00017362,2]
[422927577,1779643848000,-1543.0,0.00017362,2]
[422927651,1779643849000,-240.55322759,0.000176,2]
[422927654,1779643849000,-1601.51,0.00017787,2]
[422927641,1779643849000,-2987.84547412,0.00017486,2]
[422927652,1779643849000,-308.0,0.000176,2]
[422927650,1779643849000,-2987.84547412,0.00017582,2]
[422927653,1779643849000,-154.19,0.00017643,2]
[422927643,1779643849000,-810.79,0.00017518,2]
[422927647,1779643849000,-2987.84547412,0.00017531,2]
[422927646,1779643849000,-2987.84547412,0.00017519,2]
[422927645,1779643849000,-1492.68,0.00017518,2]
[422927644,1779643849000,-536.81,0.00017518,2]
[422927656,1779643849000,-243.10822595,0.00018,2]
[422927648,1779643849000,-555.70339165,0.00017572,2]
[422927649,1779643849000,-1667.36106396,0.00017581,2]
[422927664,1779643849000,-170.0,0.00018322,2]
[422927657,1779643849000,-286.47442401,0.00018,2]
[422927658,1779643849000,-12221.5620389,0.00018,2]
[422927668,1779643849000,-335.1,0.0001841,2]
[422927665,1779643849000,-286.47442401,0.000184,2]
[422927661,1779643849000,-1764.0,0.00018058,2]
[422927667,1779643849000,-154.19,0.0001841,2]
[422927660,1779643849000,-500.0,0.00018,2]
[422927662,1779643849000,-286.47442401,0.000182,2]
[422927663,1779643849000,-5786.0,0.00018247,2]
[422927666,1779643849000,-880.94,0.000184,2]
[422927659,1779643849000,-350.0,0.00018,2]
[422927669,1779643849000,-153.92,0.00018483,2]
[422927655,1779643849000,-500.0,0.00017913,2]
[422927642,1779643849000,-2987.84547412,0.0001751,2]
[422927612,1779643849000,-152.0,0.00017362,2]
[422927638,1779643849000,-630.35,0.00017486,2]
[422927670,1779643849000,-286.47442401,0.000185,2]
[422927613,1779643849000,-152.0,0.00017362,2]
[422927617,1779643849000,-152.0,0.00017362,2]
[422927616,1779643849000,-152.0,0.00017362,2]
[422927618,1779643849000,-152.0,0.00017362,2]
[422927619,1779643849000,-152.0,0.00017362,2]
[422927615,1779643849000,-152.0,0.00017362,2]
[422927614,1779643849000,-152.0,0.00017362,2]
[422927627,1779643849000,-154.0,0.00017362,2]
[422927621,1779643849000,-152.0,0.00017362,2]
[422927623,1779643849000,-152.0,0.00017362,2]
[422927625,1779643849000,-152.0,0.00017362,2]
[422927632,1779643849000,-166.66,0.00017417,2]
[422927629,1779643849000,-2987.84547412,0.00017383,2]
[422927630,1779643849000,-2987.84547412,0.00017404,2]
[422927631,1779643849000,-555.70339165,0.00017406,2]
[422927624,1779643849000,-152.0,0.00017362,2]
[422927628,1779643849000,-163.11253594,0.00017362,2]
[422927626,1779643849000,-156.22835006,0.00017362,2]
[422927620,1779643849000,-152.0,0.00017362,2]
[422927622,1779643849000,-152.0,0.00017362,2]
[422927634,1779643849000,-555.70339165,0.00017471,2]
[422927635,1779643849000,-500.0,0.00017486,2]
[422927633,1779643849000,-555.70339165,0.00017467,2]
[422927636,1779643849000,-649.71,0.00017486,2]
[422927639,1779643849000,-579.92,0.00017486,2]
[422927637,1779643849000,-500.0,0.00017486,2]
[422927640,1779643849000,-644.55,0.00017486,2]
[422927674,1779643849000,-3469.25545848,0.00018777,2]
[422927671,1779643849000,-286.47442401,0.000187,2]
[422927675,1779643849000,-10000.0,0.00018777,2]
[422927708,1779643849000,-165.0,0.0002,2]
[422927707,1779643849000,-154.19,0.00019944,2]
[422927709,1779643849000,-272.0,0.0002,2]
[422927711,1779643849000,-216.0,0.0002,2]
[422927719,1779643849000,-170.0,0.00020377,2]
[422927718,1779643849000,-166.66,0.00020292,2]
[422927710,1779643849000,-191.0,0.0002,2]
[422927715,1779643849000,-1724.99,0.00020128,2]
[422927712,1779643849000,-165.0,0.0002,2]
[422927716,1779643849000,-500.0,0.00020138,4]
[422927717,1779643849000,-3597.61791044,0.00020146,2]
[422927714,1779643849000,-154.0,0.0002,2]
[422927720,1779643849000,-335.1,0.00020381,2]
[422927702,1779643849000,-151.0,0.00019178,2]
[422927723,1779643849000,-880.94,0.000206,2]
[422927724,1779643849000,-500.0,0.00020713,2]
[422927725,1779643849000,-500.0,0.00020851,4]
[422927731,1779643849000,-6620.04502432,0.00021,2]
[422927721,1779643849000,-202.7,0.00020402,2]
[422927727,1779643849000,-5436.1015338,0.00020947,2]
[422927728,1779643849000,-381.9438804,0.00020947,2]
[422927726,1779643849000,-3926.4350231,0.00020947,2]
[422927732,1779643849000,-272.0,0.00021,2]
[422927729,1779643849000,-5037.3100279,0.00020947,2]
[422927730,1779643849000,-8001.3225485,0.00020947,2]
[422927734,1779643849000,-4264.36915823,0.00021,2]
[422927673,1779643849000,-480.71389535,0.0001876,2]
[422927733,1779643849000,-15000.0,0.00021,2]
[422927722,1779643849000,-387.12,0.00020548,2]
[422927701,1779643849000,-151.0,0.00019178,2]
[422927713,1779643849000,-400.0,0.0002,2]
[422927700,1779643849000,-151.0,0.00019178,2]
[422927699,1779643849000,-151.0,0.00019178,2]
[422927681,1779643849000,-10000.0,0.00018777,2]
[422927677,1779643849000,-10000.0,0.00018777,2]
[422927676,1779643849000,-151.0,0.00018777,2]
[422927678,1779643849000,-156.587,0.00018777,2]
[422927680,1779643849000,-10000.0,0.00018777,2]
[422927679,1779643849000,-151.0,0.00018777,2]
[422927682,1779643849000,-560.38385811,0.00018777,2]
[422927686,1779643849000,-10000.0,0.00018777,2]
[422927689,1779643849000,-1000.0,0.000188,2]
[422927691,1779643849000,-200.0,0.000188,2]
[422927685,1779643849000,-10000.0,0.00018777,2]
[422927684,1779643849000,-10000.0,0.00018777,2]
[422927688,1779643849000,-5818.71491346,0.00018777,2]
[422927672,1779643849000,-500.0,0.00018713,2]
[422927687,1779643849000,-10000.0,0.00018777,2]
[422927690,1779643849000,-315.0,0.000188,2]
[422927703,1779643849000,-500.0,0.00019425,3]
[422927704,1779643849000,-1601.51,0.00019566,2]
[422927697,1779643849000,-2117.0,0.00019025,5]
[422927705,1779643849000,-1000.0,0.0001968,7]
[422927696,1779643849000,-1493.0,0.00019015,5]
[422927706,1779643849000,-170.0,0.00019692,2]
[422927695,1779643849000,-170.0,0.00019007,2]
[422927694,1779643849000,-5039.3450696,0.0001896,15]
[422927693,1779643849000,-5530.0,0.000189,5]
[422927683,1779643849000,-10000.0,0.00018777,2]
[422927692,1779643849000,-166.66,0.00018854,2]
[422927698,1779643849000,-154.19,0.00019177,2]
[422927779,1779643850000,-164.953,0.0002255,2]
[422927774,1779643850000,-500.0,0.00022276,6]
[422927775,1779643850000,-150.0,0.00022307,21]
[422927764,1779643850000,-200.13400693,0.00021907,2]
[422927771,1779643850000,-216.0,0.00022,2]
[422927772,1779643850000,-5031.4756865,0.00022033,2]
[422927781,1779643850000,-927.0,0.0002255,2]
[422927770,1779643850000,-1724.99,0.00022,2]
[422927761,1779643850000,-579.92,0.00021816,2]
[422927763,1779643850000,-500.0,0.000219,2]
[422927778,1779643850000,-1238.085,0.0002255,2]
[422927773,1779643850000,-212.82353215,0.000221,2]
[422927776,1779643850000,-335.1,0.00022353,2]
[422927793,1779643850000,-272.0,0.00023,2]
[422927780,1779643850000,-6060.0,0.0002255,2]
[422927782,1779643850000,-880.94,0.000226,7]
[422927783,1779643850000,-9086.12,0.00022691,2]
[422927790,1779643850000,-203.21001812,0.00022961,2]
[422927791,1779643850000,-500.0,0.00022989,6]
[422927785,1779643850000,-215.09191753,0.00022935,2]
[422927784,1779643850000,-215.09191753,0.00022935,2]
[422927787,1779643850000,-215.09191753,0.00022935,2]
[422927794,1779643850000,-191.0,0.00023,2]
[422927786,1779643850000,-215.09191753,0.00022935,2]
[422927789,1779643850000,-609.63005445,0.00022961,2]
[422927792,1779643850000,-922.0,0.00023,2]
[422927762,1779643850000,-644.55,0.00021816,2]
[422927777,1779643850000,-1271.0,0.0002255,2]
[422927760,1779643850000,-630.35,0.00021816,2]
[422927737,1779643850000,-163.0,0.00021,2]
[422927767,1779643850000,-922.0,0.00022,2]
[422927788,1779643850000,-215.09191753,0.00022935,2]
[422927743,1779643850000,-717.37,0.00021273,2]
[422927740,1779643850000,-200.0,0.0002121,2]
[422927742,1779643850000,-9086.12,0.00021273,2]
[422927744,1779643850000,-1601.51,0.00021345,2]
[422927739,1779643850000,-151.0,0.00021112,2]
[422927736,1779643850000,-216.0,0.00021,2]
[422927738,1779643850000,-170.0,0.00021062,2]
[422927735,1779643850000,-191.0,0.00021,2]
[422927741,1779643850000,-1272.0,0.00021266,5]
[422927750,1779643850000,-502.01632594,0.000215,13]
[422927745,1779643850000,-810.79,0.00021416,2]
[422927747,1779643850000,-1492.68,0.00021416,2]
[422927768,1779643850000,-272.0,0.00022,2]
[422927746,1779643850000,-536.81,0.00021416,2]
[422927756,1779643850000,-244.593,0.00021714,2]
[422927751,1779643850000,-545.89355287,0.000215,13]
[422927749,1779643850000,-284.06085237,0.000215,13]
[422927752,1779643850000,-556.01599088,0.000215,13]
[422927748,1779643850000,-300.0,0.00021416,2]
[422927753,1779643850000,-3139.27323302,0.00021515,2]
[422927754,1779643850000,-500.0,0.00021563,5]
[422927758,1779643850000,-649.71,0.00021816,2]
[422927759,1779643850000,-500.0,0.00021816,2]
[422927766,1779643850000,-151.0,0.00021956,2]
[422927769,1779643850000,-191.0,0.00022,2]
[422927757,1779643850000,-500.0,0.00021816,2]
[422927765,1779643850000,-5000.0,0.00021918,2]
[422927755,1779643850000,-4467.84,0.00021714,2]
[422927795,1779643850000,-216.0,0.00023,2]
[422927796,1779643850000,-609.63005445,0.00023028,2]
[422927798,1779643850000,-609.63005445,0.00023161,7]
[422927827,1779643850000,-216.0,0.00024,2]
[422927830,1779643850000,-609.63005445,0.00024095,30]
[422927834,1779643850000,-634.97259652,0.00024187,2]
[422927843,1779643850000,-609.63005445,0.00024628,60]
[422927844,1779643850000,-158.41,0.00024658,2]
[422927833,1779643850000,-151.0,0.00024171,7]
[422927835,1779643850000,-609.63005445,0.00024228,30]
[422927842,1779643850000,-609.63005445,0.00024561,60]
[422927839,1779643850000,-500.0,0.00024414,8]
[422927837,1779643850000,-335.1,0.00024324,2]
[422927838,1779643850000,-609.63005445,0.00024361,60]
[422927840,1779643850000,-609.63005445,0.00024428,60]
[422927836,1779643850000,-609.63005445,0.00024295,30]
[422927847,1779643850000,-609.63005445,0.00024695,60]
[422927853,1779643850000,-500.0,0.00024999,2]
[422927857,1779643850000,-536.81,0.00024999,2]
[422927855,1779643850000,-810.79,0.00024999,2]
[422927851,1779643850000,-151.0,0.00024997,7]
[422927852,1779643850000,-151.0,0.00024997,7]
[422927846,1779643850000,-150.0,0.00024658,2]
[422927850,1779643850000,-880.94,0.000249,7]
[422927845,1779643850000,-1000.0,0.00024658,2]
[422927848,1779643850000,-609.63005445,0.00024761,120]
[422927854,1779643850000,-500.0,0.00024999,2]
[422927849,1779643850000,-609.63005445,0.00024828,120]
[422927856,1779643850000,-810.79,0.00024999,2]
[422927799,1779643850000,-609.63005445,0.00023228,7]
[422927832,1779643850000,-336.77923081,0.00024168,21]
[422927831,1779643850000,-609.63005445,0.00024161,30]
[422927841,1779643850000,-609.63005445,0.00024495,60]
[422927826,1779643850000,-191.0,0.00024,2]
[422927805,1779643850000,-609.63005445,0.00023495,7]
[422927820,1779643850000,-150.0,0.00023902,2]
[422927806,1779643850000,-500.0,0.00023514,2]
[422927804,1779643850000,-609.63005445,0.00023428,7]
[422927801,1779643850000,-609.63005445,0.00023361,7]
[422927802,1779643850000,-634.97259652,0.00023376,2]
[422927797,1779643850000,-609.63005445,0.00023095,2]
[422927800,1779643850000,-609.63005445,0.00023295,7]
[422927808,1779643850000,-589.57181382,0.00023613,18]
[422927818,1779643850000,-150.099,0.00023902,2]
[422927819,1779643850000,-150.111,0.00023902,2]
[422927807,1779643850000,-609.63005445,0.00023561,14]
[422927810,1779643850000,-609.63005445,0.00023695,14]
[422927813,1779643850000,-609.63005445,0.00023761,14]
[422927803,1779643850000,-2000.0,0.000234,2]
[422927812,1779643850000,-500.0,0.00023701,7]
[422927809,1779643850000,-609.63005445,0.00023628,14]
[422927828,1779643850000,-609.63005445,0.00024028,30]
[422927825,1779643850000,-272.0,0.00024,2]
[422927824,1779643850000,-609.63005445,0.00023961,30]
[422927822,1779643850000,-150.099,0.00023902,2]
[422927829,1779643850000,-153.92,0.00024031,2]
[422927823,1779643850000,-203.21001812,0.00023928,14]
[422927814,1779643850000,-634.97259652,0.00023775,2]
[422927811,1779643850000,-1724.99,0.000237,2]
[422927816,1779643850000,-609.63005445,0.00023895,14]
[422927815,1779643850000,-609.63005445,0.00023828,14]
[422927817,1779643850000,-250.0,0.00023902,2]
[422927821,1779643850000,-151.0,0.00023902,2]
[422927907,1779643851000,-301.29220221,0.00027,2]
[422927903,1779643851000,-171.83,0.00026751,14]
[422927901,1779643851000,-350.0,0.0002667,2]
[422927897,1779643851000,-161.0,0.00026312,2]
[422927898,1779643851000,-500.0,0.00026521,2]
[422927893,1779643851000,-500.0,0.00025839,9]
[422927892,1779643851000,-717.37,0.00025786,2]
[422927890,1779643851000,-1000.0,0.000256,2]
[422927888,1779643851000,-6060.0,0.0002555,2]
[422927902,1779643851000,-171.83,0.00026751,14]
[422927889,1779643851000,-927.0,0.0002555,2]
[422927891,1779643851000,-939.0,0.00025745,10]
[422927904,1779643851000,-2000.0,0.000269,2]
[422927909,1779643851000,-215.34753388,0.00027,7]
[422927896,1779643851000,-335.1,0.00026296,2]
[422927906,1779643851000,-150.0,0.00027,2]
[422927905,1779643851000,-150.0,0.00026902,2]
[422927899,1779643851000,-500.0,0.00026552,10]
[422927908,1779643851000,-167.08985132,0.00027,2]
[422927910,1779643851000,-394.0,0.00027033,2]
[422927911,1779643851000,-394.0,0.00027063,2]
[422927913,1779643851000,-415.0,0.00027099,2]
[422927912,1779643851000,-394.0,0.00027086,2]
[422927915,1779643851000,-415.0,0.0002717,2]
[422927925,1779643851000,-5436.1015338,0.00027279,2]
[422927887,1779643851000,-1224.0,0.0002555,2]
[422927900,1779643851000,-880.94,0.000266,7]
[422927886,1779643851000,-1271.0,0.0002555,2]
[422927859,1779643851000,-649.71,0.00024999,2]
[422927885,1779643851000,-1724.99,0.00025486,7]
[422927914,1779643851000,-381.0,0.00027136,2]
[422927869,1779643851000,-1492.68,0.00024999,2]
[422927858,1779643851000,-536.81,0.00024999,2]
[422927860,1779643851000,-649.71,0.00024999,2]
[422927866,1779643851000,-579.92,0.00024999,2]
[422927867,1779643851000,-644.55,0.00024999,2]
[422927863,1779643851000,-630.35,0.00024999,2]
[422927861,1779643851000,-500.0,0.00024999,2]
[422927865,1779643851000,-579.92,0.00024999,2]
[422927864,1779643851000,-630.35,0.00024999,2]
[422927862,1779643851000,-500.0,0.00024999,2]
[422927868,1779643851000,-644.55,0.00024999,2]
[422927870,1779643851000,-1492.68,0.00024999,2]
[422927883,1779643851000,-10250.06301404,0.00025452,2]
[422927872,1779643851000,-2122.10623674,0.00025,2]
[422927874,1779643851000,-204.0,0.00025,2]
[422927880,1779643851000,-810.79,0.00025448,2]
[422927879,1779643851000,-151.0,0.00025447,7]
[422927873,1779643851000,-275.0,0.00025,2]
[422927876,1779643851000,-701.0,0.00025085,10]
[422927881,1779643851000,-536.81,0.00025448,2]
[422927878,1779643851000,-232.52863687,0.00025388,2]
[422927875,1779643851000,-226.0,0.00025,2]
[422927877,1779643851000,-500.0,0.00025126,8]
[422927882,1779643851000,-1492.68,0.00025448,2]
[422927884,1779643851000,-4595.55094584,0.00025452,2]
[422927895,1779643851000,-3133.0,0.000262,2]
[422927894,1779643851000,-150.0,0.0002589,2]
[422927871,1779643851000,-468429.43694828,0.00025,2]
[422927926,1779643851000,-381.9438804,0.00027279,2]
[422927924,1779643851000,-3926.4350231,0.00027279,2]
[422927919,1779643851000,-394.0,0.00027224,2]
[422927950,1779643851000,-155.0,0.00027476,2]
[422927949,1779643851000,-381.0,0.00027465,2]
[422927954,1779643851000,-415.0,0.00027528,2]
[422927958,1779643851000,-500.0,0.00027543,30]
[422927959,1779643851000,-630.35,0.00027543,120]
[422927956,1779643851000,-500.0,0.00027543,120]
[422927957,1779643851000,-649.71,0.00027543,120]
[422927955,1779643851000,-350.0,0.00027532,2]
[422927962,1779643851000,-1534.42944089,0.00027544,7]
[422927961,1779643851000,-644.55,0.00027543,2]
[422927965,1779643851000,-536.81,0.00027549,10]
[422927960,1779643851000,-579.92,0.00027543,7]
[422927963,1779643851000,-190.56375094,0.00027545,2]
[422927964,1779643851000,-810.79,0.00027549,120]
[422927967,1779643851000,-189507.41378533,0.0002755,2]
[422927977,1779643851000,-1627.03646232,0.0002757,2]
[422927978,1779643851000,-394.0,0.00027571,2]
[422927966,1779643851000,-1492.68,0.00027549,2]
[422927968,1779643851000,-174.96,0.0002755,30]
[422927969,1779643851000,-211.46,0.0002755,2]
[422927920,1779643851000,-415.0,0.00027249,2]
[422927971,1779643851000,-742.41,0.0002755,30]
[422927975,1779643851000,-500.0,0.00027556,60]
[422927973,1779643851000,-227.31,0.0002755,30]
[422927974,1779643851000,-700.0,0.00027556,60]
[422927972,1779643851000,-203.55,0.0002755,2]
[422927976,1779643851000,-387.0,0.0002756,2]
[422927945,1779643851000,-415.0,0.00027416,2]
[422927948,1779643851000,-262.0,0.00027447,2]
[422927970,1779643851000,-202.85,0.0002755,2]
[422927942,1779643851000,-222.49659857,0.00027397,2]
[422927946,1779643851000,-200.0,0.00027423,2]
[422927918,1779643851000,-1215.22,0.000272,2]
[422927916,1779643851000,-150.0,0.00027185,2]
[422927917,1779643851000,-415.0,0.00027188,2]
[422927923,1779643851000,-1724.99,0.00027272,7]
[422927922,1779643851000,-387.0,0.0002727,2]
[422927927,1779643851000,-5037.3100279,0.00027279,2]
[422927929,1779643851000,-381.0,0.00027296,2]
[422927928,1779643851000,-8001.3225485,0.00027279,2]
[422927934,1779643851000,-1500.0,0.00027397,2]
[422927935,1779643851000,-158.41,0.00027397,15]
[422927933,1779643851000,-845.21981,0.0002737,2]
[422927932,1779643851000,-845.21982,0.0002737,2]
[422927921,1779643851000,-500.0,0.00027264,10]
[422927939,1779643851000,-151.0,0.00027397,2]
[422927930,1779643851000,-381.0,0.00027313,2]
[422927944,1779643851000,-8713.25,0.00027397,10]
[422927947,1779643851000,-381.0,0.00027447,2]
[422927952,1779643851000,-415.0,0.00027485,2]
[422927940,1779643851000,-151.0,0.00027397,2]
[422927953,1779643851000,-263.0,0.00027487,2]
[422927943,1779643851000,-4569.25,0.00027397,10]
[422927951,1779643851000,-381.0,0.00027479,2]
[422927937,1779643851000,-151.0,0.00027397,2]
[422927936,1779643851000,-151.0,0.00027397,2]
[422927931,1779643851000,-845.21981,0.0002737,2]